{"text_format":"1","workbook":"xlsx","n_sheets":4,"sheets":["SG01-AK","SG01-BG","SG01-KV","SG01-PV"],"not_rendered":{"charts":0,"images":0,"macros":0,"external_links":1,"defined_names":17,"comments":0,"pivot_tables":0},"unopened":[],"bounds":{"document_bytes":16777216,"sheet_cells":100000,"rows_first":2000,"rows_last":500,"rows_between":2000,"halvings":0,"cell_chars":16384,"cell_head_chars":4096},"cells_cut":0,"cells_raw":0,"read":"whole","date_system":"1900"}

{"sheet":"SG01-AK","index":0,"n_rows":52,"n_cols":17,"rows_kept":52,"cut":false,"hidden":false,"merged":[[29,0,29,8],[29,9,29,16],[7,10,7,13],[6,14,6,16],[7,14,7,16],[6,10,6,13],[2,0,2,8],[4,1,4,4],[4,5,4,8],[4,10,4,16],[6,5,6,8],[7,5,7,8]]}
["STATISTIK DER SOZIALGERICHTSBARKEIT",null,null,null,null,null,null,null,null,"STATISTIK DER SOZIALGERICHTSBARKEIT"]
["Widerspruchsverfahren in der landwirtschaftlichen Alterskasse",null,null,null,null,null,null,null,null,"Widerspruchsverfahren in der landwirtschaftlichen Alterskasse"]
["vom 1. Januar bis 31. Dezember 2013",null,null,null,null,null,null,null,null,{"$f":"A3","v":"vom 1. Januar bis 31. Dezember 2013"}]
[]
[null,"Bestand und Erledigung der Widersprüche",null,null,null,"Erledigte Widersprüche im einzelnen",null,null,null,null,"noch: erledigte Widersprüche im einzelnen"]
[null,"- Gesamtüberblick -"]
[null,"Unerledigte","Im Berichts-","Im Berichts-","Unerledigte","Von den erledigten Widerspruchsverfahren",null,null,null,null,"Von den Widerspruchsbescheiden ",null,null,null,"Zahl der Widerspruchsbescheide"]
["Sozialversicherung","Widersprüche","zeitraum ein-","zeitraum ","Widersprüche","(vgl. Sp. 3) wurden abgeschlossen",null,null,null,"Sozialversicherung","(vgl. Sp. 5) ergingen",null,null,null,"(vgl. Sp. 5)"]
["für","zu Beginn ","gegangene","erledigte","am Ende ","durch Wider-","durch Abhilfe","durch Zurück-.","auf sonstige","für","mit vollem","mit teil-","ohne Erfolg","ohne Erfolg","die bindend","die mit Klage-","deren Rechts-"]
["Landwirtschaft, Forsten ","des Berichts-","Widersprüche","Widersprüche","des Berichts-","spruchs-","(§ 85 Abs. 1","nahme","Art","Landwirtschaft, Forsten ","Erfolg","weisem ","aus formal-","aus materiell-","geworden","erhebung","behelfsfrist"]
["und Gartenbau","zeitraumes","(§§ 83 und 84",null,"zeitraumes","bescheid","SGB)",null," ","und Gartenbau"," ","Erfolg","rechtlichen","rechtlichen","sind","angefochten","noch nicht"]
[null,null,"SGG)",null,null,null,null,null,null,null,null,null,"Gründen","Gründen",null,"wurden","abgelaufen ist"]
[null,"Schlüssel 0100","Schlüssel 0110","Schlüssel 0120","Schlüssel 0190","Schlüssel 0310","Schlüssel 0311","Schlüssel 0313","Schlüssel 0314",null,"Schlüssel 0340","Schlüssel 0341","Schlüssel 0342","Schlüssel 0343","Schlüssel 0360","Schlüssel 0361","Schlüssel 0362"]
[null,1,2,3,4,5,6,7,8,null,9,10,11,12,13,14,15]
["Region 1*\n(Schleswig-Holstein und Hamburg)",140,95,105,130,43,25,13,24,"Region 1*\n(Schleswig-Holstein und Hamburg)",1,1,0,41,31,12,0]
["Region 2*\n(Niedersachsen und Bremen)",505,361,401,465,162,144,72,23,"Region 2*\n(Niedersachsen und Bremen)",3,2,4,153,113,43,6]
["Region 3*\n(Nordrhein-Westfalen)",1124,579,1019,684,102,613,250,54,"Region 3*\n(Nordrhein-Westfalen)",0,2,6,94,80,22,0]
["Region 4*\n(Hessen, Rheinland-Pfalz und Saarland)",1062,398,432,1028,100,185,127,20,"Region 4*\n(Hessen, Rheinland-Pfalz und Saarland)",0,2,4,94,61,25,14]
["Region 5*\n(Bayern (Franken und Oberbayern))",426,443,720,149,205,153,85,277,"Region 5*\n(Bayern (Franken und Oberbayern))",2,9,15,179,147,44,14]
["Region 6*\n(Bayern (Niederbayern/Oberpfalz und Schwaben))",772,359,421,710,211,96,64,50,"Region 6*\n(Bayern (Niederbayern/Oberpfalz und Schwaben))",12,15,5,179,149,53,9]
["Region 7*\n(Baden-Württemberg)",648,324,430,542,165,113,131,21,"Region 7*\n(Baden-Württemberg)",3,5,6,151,125,40,0]
["Region Zentral\n(ehemals Gartenbau und Sonderaufgaben)",468,217,425,260,276,42,41,66,"Region Zentral\n(ehemals Gartenbau und Sonderaufgaben)",5,4,8,259,254,22,0]
["Region 8* \n(Berlin, Brandenburg, Mecklenburg-Vorpommern, Sachsen-Anhalt, Sachsen und Thüringen)",325,317,535,107,155,160,195,25,"Region 8* \n(Berlin, Brandenburg, Mecklenburg-Vorpommern, Sachsen-Anhalt, Sachsen und Thüringen)",0,0,12,143,126,29,0]
[" Geschäftsjahr 2013",{"$f":"SUM(B15:B23)","v":5470},3093,4488,4075,1419,1531,978,560," Geschäftsjahr 2013",{"$f":"SUM(K15:K23)","v":26},40,60,1293,1086,290,43]
[" Geschäftsjahr 2012",5764,4642,4936,5470,2082,919,933,1002," Geschäftsjahr 2012",34,51,48,1949,1521,456,105]
[" Geschäftsjahr 2011",6286,3658,4180,5764,1939,884,1087,270," Geschäftsjahr 2011",32,40,65,1802,1404,502,33]
[" Geschäftsjahr 2010",7883,3969,5566,6286,2732,924,926,984," Geschäftsjahr 2010",30,45,48,2609,2210,492,30]
[" Geschäftsjahr 2009",12415,4333,8865,7883,5269,1010,1179,1407," Geschäftsjahr 2009",22,45,58,5144,4746,474,49]
[" Geschäftsjahr 2008",16055,4287,7927,12415,3202,1181,1257,2287," Geschäftsjahr 2008",23,47,35,3097,1791,573,838]
["BEARBEITET UND ZUSAMMENGESTELLT: SOZIALVERSICHERUNG FÜR LANDWIRTSCHAFT, FORSTEN UND GARTENBAU, KASSEL",null,null,null,null,null,null,null,null,"BEARBEITET UND ZUSAMMENGESTELLT: SOZIALVERSICHERUNG FÜR LANDWIRTSCHAFT, FORSTEN UND GARTENBAU, KASSEL"]
[]
[null,null,null,{"$f":"IF(D15=SUM(F15:I15),\"o.k.\",\"falsch\")","v":"o.k."},{"$f":"IF(E15=SUM(B15+C15-D15),\"o.k.\",\"falsch\")","v":"o.k."},{"$f":"IF(F15=SUM(K15:N15),\"o.k.\",\"falsch\")","v":"o.k."}]
[null,null,null,"o.k.","o.k.","o.k."]
[null,null,null,"o.k.","o.k.","o.k."]
[null,null,null,"o.k.","o.k.","o.k."]
[null,null,null,"o.k.","o.k.","o.k."]
[null,null,null,"o.k.","o.k.","o.k."]
[null,null,null,"o.k.","o.k.","o.k."]
[null,null,null,"o.k.","o.k.","o.k."]
[null,null,null,"o.k.","o.k.","o.k."]
[null,null,null,"o.k.","o.k.","o.k."]
[]
[null,null,null,null,null,{"$f":"IF(F15=SUM(O15:Q15),\"o.k.\",\"falsch\")","v":"o.k."}]
[null,null,null,null,null,"o.k."]
[null,null,null,null,null,"o.k."]
[null,null,null,null,null,"o.k."]
[null,null,null,null,null,"o.k."]
[null,null,null,null,null,"o.k."]
[null,null,null,null,null,"o.k."]
[null,null,null,null,null,"o.k."]
[null,null,null,null,null,"o.k."]
[null,null,null,null,null,"o.k."]

{"sheet":"SG01-BG","index":1,"n_rows":52,"n_cols":17,"rows_kept":52,"cut":false,"hidden":false,"merged":[[29,0,29,8],[29,9,29,16],[7,10,7,13],[6,14,6,16],[7,14,7,16],[6,10,6,13],[2,0,2,8],[4,1,4,4],[4,5,4,8],[4,10,4,16],[6,5,6,8],[7,5,7,8]]}
["STATISTIK DER SOZIALGERICHTSBARKEIT",null,null,null,null,null,null,null,null,"STATISTIK DER SOZIALGERICHTSBARKEIT"]
["Widerspruchsverfahren in der landwirtschaftlichen Berufsgenossenschaft",null,null,null,null,null,null,null,null,"Widerspruchsverfahren in der landwirtschaftlichen Berufsgenossenschaft"]
["vom 1. Januar bis 31. Dezember 2013",null,null,null,null,null,null,null,null,{"$f":"A3","v":"vom 1. Januar bis 31. Dezember 2013"}]
[]
[null,"Bestand und Erledigung der Widersprüche",null,null,null,"Erledigte Widersprüche im einzelnen",null,null,null,null,"noch: erledigte Widersprüche im einzelnen"]
[null,"- Gesamtüberblick -"]
[null,"Unerledigte","Im Berichts-","Im Berichts-","Unerledigte","Von den erledigten Widerspruchsverfahren",null,null,null,null,"Von den Widerspruchsbescheiden ",null,null,null,"Zahl der Widerspruchsbescheide"]
["Sozialversicherung","Widersprüche","zeitraum ein-","zeitraum ","Widersprüche","(vgl. Sp. 3) wurden abgeschlossen",null,null,null,"Sozialversicherung","(vgl. Sp. 5) ergingen",null,null,null,"(vgl. Sp. 5)"]
["für","zu Beginn ","gegangene","erledigte","am Ende ","durch Wider-","durch Abhilfe","durch Zurück-.","auf sonstige","für","mit vollem","mit teil-","ohne Erfolg","ohne Erfolg","die bindend","die mit Klage-","deren Rechts-"]
["Landwirtschaft, Forsten ","des Berichts-","Widersprüche","Widersprüche","des Berichts-","spruchs-","(§ 85 Abs. 1","nahme","Art","Landwirtschaft, Forsten ","Erfolg","weisem ","aus formal-","aus materiell-","geworden","erhebung","behelfsfrist"]
["und Gartenbau","zeitraumes","(§§ 83 und 84",null,"zeitraumes","bescheid","SGB)",null," ","und Gartenbau"," ","Erfolg","rechtlichen","rechtlichen","sind","angefochten","noch nicht"]
[null,null,"SGG)",null,null,null,null,null,null,null,null,null,"Gründen","Gründen",null,"wurden","abgelaufen ist"]
[null,"Schlüssel 0100","Schlüssel 0110","Schlüssel 0120","Schlüssel 0190","Schlüssel 0310","Schlüssel 0311","Schlüssel 0313","Schlüssel 0314",null,"Schlüssel 0340","Schlüssel 0341","Schlüssel 0342","Schlüssel 0343","Schlüssel 0360","Schlüssel 0361","Schlüssel 0362"]
[null,1,2,3,4,5,6,7,8,null,9,10,11,12,13,14,15]
["Region 1*\n(Schleswig-Holstein und Hamburg)",499,705,906,298,196,235,96,379,"Region 1*\n(Schleswig-Holstein und Hamburg)",1,27,0,168,169,27,0]
["Region 2*\n(Niedersachsen und Bremen)",279,435,389,325,223,52,100,14,"Region 2*\n(Niedersachsen und Bremen)",0,9,0,214,146,74,3]
["Region 3*\n(Nordrhein-Westfalen)",274,459,517,216,264,78,117,58,"Region 3*\n(Nordrhein-Westfalen)",3,15,16,230,218,46,0]
["Region 4*\n(Hessen, Rheinland-Pfalz und Saarland)",719,1103,915,907,156,518,156,85,"Region 4*\n(Hessen, Rheinland-Pfalz und Saarland)",6,12,8,130,70,53,33]
["Region 5*\n(Bayern (Franken und Oberbayern))",532,1144,1192,484,546,221,196,229,"Region 5*\n(Bayern (Franken und Oberbayern))",6,26,26,488,405,70,71]
["Region 6*\n(Bayern (Niederbayern/Oberpfalz und Schwaben))",192,767,767,192,459,176,85,47,"Region 6*\n(Bayern (Niederbayern/Oberpfalz und Schwaben))",10,23,14,412,331,115,13]
["Region 7*\n(Baden-Württemberg)",347,1217,1136,428,360,411,342,23,"Region 7*\n(Baden-Württemberg)",2,9,9,340,300,60,0]
["Region Zentral\n(ehemals Gartenbau und Sonderaufgaben)",1116,1647,1545,1218,1244,137,134,30,"Region Zentral\n(ehemals Gartenbau und Sonderaufgaben)",11,23,65,1145,967,277,0]
["Region 8* \n(Berlin, Brandenburg, Mecklenburg-Vorpommern, Sachsen-Anhalt, Sachsen und Thüringen)",1241,11491,9224,3508,7913,242,1008,61,"Region 8* \n(Berlin, Brandenburg, Mecklenburg-Vorpommern, Sachsen-Anhalt, Sachsen und Thüringen)",0,19,435,7459,7678,235,0]
[" Geschäftsjahr 2013",{"$f":"SUM(B15:B23)","v":5199},{"$f":"SUM(C15:C23)","v":18968},16591,7576,11361,2070,2234,926," Geschäftsjahr 2013",{"$f":"SUM(K15:K23)","v":39},{"$f":"SUM(L15:L23)","v":163},573,10586,10284,957,120]
[" Geschäftsjahr 2012",12620,8289,15710,5199,8593,2324,2086,2707," Geschäftsjahr 2012",125,169,245,8054,7401,1078,114]
[" Geschäftsjahr 2011",4692,24613,16685,12620,5873,2704,4475,3633," Geschäftsjahr 2011",106,170,348,5249,4783,1039,51]
[" Geschäftsjahr 2010",4581,12598,12487,4692,4932,3872,2188,1495," Geschäftsjahr 2010",71,162,102,4597,3680,1182,70]
[" Geschäftsjahr 2009",5335,8823,9577,4581,4809,2331,1851,586," Geschäftsjahr 2009",75,156,118,4460,3476,1253,80]
[" Geschäftsjahr 2008",6119,10075,10853,5335,5105,2708,2172,874," Geschäftsjahr 2008",70,188,110,4737,3751,1220,129]
["BEARBEITET UND ZUSAMMENGESTELLT: SOZIALVERSICHERUNG FÜR LANDWIRTSCHAFT, FORSTEN UND GARTENBAU, KASSEL",null,null,null,null,null,null,null,null,"BEARBEITET UND ZUSAMMENGESTELLT: SOZIALVERSICHERUNG FÜR LANDWIRTSCHAFT, FORSTEN UND GARTENBAU, KASSEL"]
[]
[null,null,null,{"$f":"IF(D15=SUM(F15:I15),\"o.k.\",\"falsch\")","v":"o.k."},{"$f":"IF(E15=SUM(B15+C15-D15),\"o.k.\",\"falsch\")","v":"o.k."},{"$f":"IF(F15=SUM(K15:N15),\"o.k.\",\"falsch\")","v":"o.k."}]
[null,null,null,{"$f":"IF(D16=SUM(F16:I16),\"o.k.\",\"falsch\")","v":"o.k."},{"$f":"IF(E16=SUM(B16+C16-D16),\"o.k.\",\"falsch\")","v":"o.k."},{"$f":"IF(F16=SUM(K16:N16),\"o.k.\",\"falsch\")","v":"o.k."}]
[null,null,null,"o.k.","o.k.","o.k."]
[null,null,null,"o.k.","o.k.","o.k."]
[null,null,null,"o.k.","o.k.","o.k."]
[null,null,null,"o.k.","o.k.","o.k."]
[null,null,null,"o.k.","o.k.","o.k."]
[null,null,null,"o.k.","o.k.","o.k."]
[null,null,null,"o.k.","o.k.","o.k."]
[null,null,null,"o.k.","o.k.","o.k."]
[]
[null,null,null,null,null,{"$f":"IF(F15=SUM(O15:Q15),\"o.k.\",\"falsch\")","v":"o.k."}]
[null,null,null,null,null,{"$f":"IF(F16=SUM(O16:Q16),\"o.k.\",\"falsch\")","v":"o.k."}]
[null,null,null,null,null,"o.k."]
[null,null,null,null,null,"o.k."]
[null,null,null,null,null,"o.k."]
[null,null,null,null,null,"o.k."]
[null,null,null,null,null,"o.k."]
[null,null,null,null,null,"o.k."]
[null,null,null,null,null,{"$f":"IF(F23=SUM(O23:Q23),\"o.k.\",\"falsch\")","v":"o.k."}]
[null,null,null,null,null,{"$f":"IF(F24=SUM(O24:Q24),\"o.k.\",\"falsch\")","v":"o.k."}]

{"sheet":"SG01-KV","index":2,"n_rows":52,"n_cols":17,"rows_kept":52,"cut":false,"hidden":false,"merged":[[2,0,2,8],[4,1,4,4],[4,5,4,8],[4,10,4,16],[6,5,6,8],[7,5,7,8],[29,0,29,8],[29,9,29,16],[7,10,7,13],[6,14,6,16],[7,14,7,16],[6,10,6,13]]}
["STATISTIK DER SOZIALGERICHTSBARKEIT",null,null,null,null,null,null,null,null,"STATISTIK DER SOZIALGERICHTSBARKEIT"]
["Widerspruchsverfahren in der landwirtschaftlichen Krankenversicherung",null,null,null,null,null,null,null,null,"Widerspruchsverfahren in der landwirtschaftlichen Krankenversicherung"]
["vom 1. Januar bis 31. Dezember 2013",null,null,null,null,null,null,null,null,{"$f":"A3","v":"vom 1. Januar bis 31. Dezember 2013"}]
[]
[null,"Bestand und Erledigung der Widersprüche",null,null,null,"Erledigte Widersprüche im einzelnen",null,null,null,null,"noch: erledigte Widersprüche im einzelnen"]
[null,"- Gesamtüberblick -"]
[null,"Unerledigte","Im Berichts-","Im Berichts-","Unerledigte","Von den erledigten Widerspruchsverfahren",null,null,null,null,"Von den Widerspruchsbescheiden ",null,null,null,"Zahl der Widerspruchsbescheide"]
["Sozialversicherung","Widersprüche","zeitraum ein-","zeitraum ","Widersprüche","(vgl. Sp. 3) wurden abgeschlossen",null,null,null,"Sozialversicherung","(vgl. Sp. 5) ergingen",null,null,null,"(vgl. Sp. 5)"]
["für ","zu Beginn ","gegangene","erledigte","am Ende ","durch Wider-","durch Abhilfe","durch Zurück-.","auf sonstige","für ","mit vollem","mit teil-","ohne Erfolg","ohne Erfolg","die bindend","die mit Klage-","deren Rechts-"]
["Landwirtschaft,","des Berichts-","Widersprüche","Widersprüche","des Berichts-","spruchs-","(§ 85 Abs. 1","nahme","Art","Landwirtschaft,","Erfolg","weisem ","aus formal-","aus materiell-","geworden","erhebung","behelfsfrist"]
["Forsten und Gartenbau","zeitraumes","(§§ 83 und 84",null,"zeitraumes","bescheid","SGB)",null," ","Forsten und Gartenbau"," ","Erfolg","rechtlichen","rechtlichen","sind","angefochten","noch nicht"]
[null,null,"SGG)",null,null,null,null,null,null,null,null,null,"Gründen","Gründen",null,"wurden","abgelaufen ist"]
[null,"Schlüssel 0100","Schlüssel 0110","Schlüssel 0120","Schlüssel 0190","Schlüssel 0310","Schlüssel 0311","Schlüssel 0313","Schlüssel 0314",null,"Schlüssel 0340","Schlüssel 0341","Schlüssel 0342","Schlüssel 0343","Schlüssel 0360","Schlüssel 0361","Schlüssel 0362"]
[null,1,2,3,4,5,6,7,8,null,9,10,11,12,13,14,15]
["Region 1*\n(Schleswig-Holstein und Hamburg)",192,246,202,236,68,54,52,28,"Region 1*\n(Schleswig-Holstein und Hamburg)",7,5,1,55,41,27,0]
["Region 2*\n(Niedersachsen und Bremen)",153,672,631,194,285,228,101,17,"Region 2*\n(Niedersachsen und Bremen)",1,1,5,278,254,30,1]
["Region 3*\n(Nordrhein-Westfalen)",120,644,548,216,203,209,108,28,"Region 3*\n(Nordrhein-Westfalen)",2,12,6,183,180,23,0]
["Region 4*\n(Hessen, Rheinland-Pfalz und Saarland)",107,441,428,120,94,158,92,84,"Region 4*\n(Hessen, Rheinland-Pfalz und Saarland)",2,2,10,80,79,13,2]
["Region 5*\n(Bayern (Franken und Oberbayern))",187,643,717,113,314,225,77,101,"Region 5*\n(Bayern (Franken und Oberbayern))",3,10,17,284,264,29,21]
["Region 6*\n(Bayern (Niederbayern/Oberpfalz und Schwaben))",138,629,577,190,176,249,138,14,"Region 6*\n(Bayern (Niederbayern/Oberpfalz und Schwaben))",5,23,2,146,156,15,5]
["Region 7*\n(Baden-Württemberg)",180,730,697,213,225,329,106,37,"Region 7*\n(Baden-Württemberg)",12,13,8,192,209,16,0]
["Region Zentral\n(ehemals Gartenbau und Sonderaufgaben)",149,371,368,152,216,100,48,4,"Region Zentral\n(ehemals Gartenbau und Sonderaufgaben)",9,6,13,188,199,17,0]
["Region 8* \n(Berlin, Brandenburg, Mecklenburg-Vorpommern, Sachsen-Anhalt, Sachsen und Thüringen)",109,377,354,132,142,125,66,21,"Region 8* \n(Berlin, Brandenburg, Mecklenburg-Vorpommern, Sachsen-Anhalt, Sachsen und Thüringen)",4,0,3,135,125,17,0]
[" Geschäftsjahr 2013",{"$f":"SUM(B15:B23)","v":1335},4753,4522,1566,1723,1677,788,334," Geschäftsjahr 2013",{"$f":"SUM(K15:K23)","v":45},72,65,1541,1507,187,29]
[" Geschäftsjahr 2012",1477,4769,4911,1335,1844,1815,809,443," Geschäftsjahr 2012",48,51,51,1694,1654,153,37]
[" Geschäftsjahr 2011",1439,5026,4988,1477,1675,2184,771,358," Geschäftsjahr 2011",48,69,85,1473,1437,161,77]
[" Geschäftsjahr 2010",1621,4970,5152,1439,1742,2103,824,483," Geschäftsjahr 2010",33,61,68,1580,1532,188,22]
[" Geschäftsjahr 2009",1366,5380,5125,1621,1782,2060,853,430," Geschäftsjahr 2009",31,79,80,1592,1560,208,14]
[" Geschäftsjahr 2008",1358,5517,5509,1366,1991,2084,943,491," Geschäftsjahr 2008",34,58,43,1856,1761,194,36]
["BEARBEITET UND ZUSAMMENGESTELLT: SOZIALVERSICHERUNG FÜR LANDWIRTSCHAFT, FORSTEN UND GARTENBAU, KASSEL",null,null,null,null,null,null,null,null,"BEARBEITET UND ZUSAMMENGESTELLT: SOZIALVERSICHERUNG FÜR LANDWIRTSCHAFT, FORSTEN UND GARTENBAU, KASSEL"]
[]
[null,null,null,{"$f":"IF(D15=SUM(F15:I15),\"o.k.\",\"falsch\")","v":"o.k."},{"$f":"IF(E15=SUM(B15+C15-D15),\"o.k.\",\"falsch\")","v":"o.k."},{"$f":"IF(F15=SUM(K15:N15),\"o.k.\",\"falsch\")","v":"o.k."}]
[null,null,null,"o.k.","o.k.","o.k."]
[null,null,null,"o.k.","o.k.","o.k."]
[null,null,null,"o.k.","o.k.","o.k."]
[null,null,null,"o.k.","o.k.","o.k."]
[null,null,null,"o.k.","o.k.","o.k."]
[null,null,null,"o.k.","o.k.","o.k."]
[null,null,null,"o.k.","o.k.","o.k."]
[null,null,null,"o.k.","o.k.","o.k."]
[null,null,null,"o.k.","o.k.","o.k."]
[]
[null,null,null,null,null,{"$f":"IF(F15=SUM(O15:Q15),\"o.k.\",\"falsch\")","v":"o.k."}]
[null,null,null,null,null,"o.k."]
[null,null,null,null,null,"o.k."]
[null,null,null,null,null,"o.k."]
[null,null,null,null,null,"o.k."]
[null,null,null,null,null,"o.k."]
[null,null,null,null,null,"o.k."]
[null,null,null,null,null,"o.k."]
[null,null,null,null,null,"o.k."]
[null,null,null,null,null,"o.k."]

{"sheet":"SG01-PV","index":3,"n_rows":52,"n_cols":17,"rows_kept":52,"cut":false,"hidden":false,"merged":[[2,0,2,8],[4,1,4,4],[4,5,4,8],[4,10,4,16],[6,5,6,8],[7,5,7,8],[29,0,29,8],[29,9,29,16],[7,10,7,13],[6,14,6,16],[7,14,7,16],[6,10,6,13]]}
["STATISTIK DER SOZIALGERICHTSBARKEIT",null,null,null,null,null,null,null,null,"STATISTIK DER SOZIALGERICHTSBARKEIT"]
["Widerspruchsverfahren in der landwirtschaftlichen Pflegeversicherung",null,null,null,null,null,null,null,null,"Widerspruchsverfahren in der landwirtschaftlichen Pflegeversicherung"]
["vom 1. Januar bis 31. Dezember 2013",null,null,null,null,null,null,null,null,{"$f":"A3","v":"vom 1. Januar bis 31. Dezember 2013"}]
[]
[null,"Bestand und Erledigung der Widersprüche",null,null,null,"Erledigte Widersprüche im einzelnen",null,null,null,null,"noch: erledigte Widersprüche im einzelnen"]
[null,"- Gesamtüberblick -"]
[null,"Unerledigte","Im Berichts-","Im Berichts-","Unerledigte","Von den erledigten Widerspruchsverfahren",null,null,null,null,"Von den Widerspruchsbescheiden ",null,null,null,"Zahl der Widerspruchsbescheide"]
["Sozialversicherung","Widersprüche","zeitraum ein-","zeitraum ","Widersprüche","(vgl. Sp. 3) wurden abgeschlossen",null,null,null,"Sozialversicherung","(vgl. Sp. 5) ergingen",null,null,null,"(vgl. Sp. 5)"]
["für","zu Beginn ","gegangene","erledigte","am Ende ","durch Wider-","durch Abhilfe","durch Zurück-.","auf sonstige","für","mit vollem","mit teil-","ohne Erfolg","ohne Erfolg","die bindend","die mit Klage-","deren Rechts-"]
["Landwirtschaft, Forsten ","des Berichts-","Widersprüche","Widersprüche","des Berichts-","spruchs-","(§ 85 Abs. 1","nahme","Art","Landwirtschaft, Forsten ","Erfolg","weisem ","aus formal-","aus materiell-","geworden","erhebung","behelfsfrist"]
["und Gartenbau","zeitraumes","(§§ 83 und 84",null,"zeitraumes","bescheid","SGB)",null," ","und Gartenbau"," ","Erfolg","rechtlichen","rechtlichen","sind","angefochten","noch nicht"]
[null,null,"SGG)",null,null,null,null,null,null,null,null,null,"Gründen","Gründen",null,"wurden","abgelaufen ist"]
[null,"Schlüssel 0100","Schlüssel 0110","Schlüssel 0120","Schlüssel 0190","Schlüssel 0310","Schlüssel 0311","Schlüssel 0313","Schlüssel 0314",null,"Schlüssel 0340","Schlüssel 0341","Schlüssel 0342","Schlüssel 0343","Schlüssel 0360","Schlüssel 0361","Schlüssel 0362"]
[null,1,2,3,4,5,6,7,8,null,9,10,11,12,13,14,15]
["Region 1*\n(Schleswig-Holstein und Hamburg)",44,130,135,39,81,22,18,14,"Region 1*\n(Schleswig-Holstein und Hamburg)",1,14,0,66,76,5,0]
["Region 2*\n(Niedersachsen und Bremen)",171,636,674,133,207,350,112,5,"Region 2*\n(Niedersachsen und Bremen)",0,6,1,200,193,14,0]
["Region 3*\n(Nordrhein-Westfalen)",102,383,372,113,97,112,153,10,"Region 3*\n(Nordrhein-Westfalen)",2,23,1,71,87,10,0]
["Region 4*\n(Hessen, Rheinland-Pfalz und Saarland)",139,454,439,154,45,160,196,38,"Region 4*\n(Hessen, Rheinland-Pfalz und Saarland)",0,2,0,43,35,9,1]
["Region 5*\n(Bayern (Franken und Oberbayern))",92,314,376,30,211,73,54,38,"Region 5*\n(Bayern (Franken und Oberbayern))",2,11,3,195,184,15,12]
["Region 6*\n(Bayern (Niederbayern/Oberpfalz und Schwaben))",120,358,291,187,91,78,77,45,"Region 6*\n(Bayern (Niederbayern/Oberpfalz und Schwaben))",1,37,2,51,79,10,2]
["Region 7*\n(Baden-Württemberg)",46,237,269,14,121,121,22,5,"Region 7*\n(Baden-Württemberg)",4,12,1,104,111,10,0]
["Region Zentral\n(ehemals Gartenbau und Sonderaufgaben)",73,106,148,31,36,55,53,4,"Region Zentral\n(ehemals Gartenbau und Sonderaufgaben)",0,0,0,36,31,4,1]
["Region 8* \n(Berlin, Brandenburg, Mecklenburg-Vorpommern, Sachsen-Anhalt, Sachsen und Thüringen)",15,44,42,17,17,15,8,2,"Region 8* \n(Berlin, Brandenburg, Mecklenburg-Vorpommern, Sachsen-Anhalt, Sachsen und Thüringen)",0,1,0,16,16,1,0]
[" Geschäftsjahr 2013",{"$f":"SUM(B15:B23)","v":802},2662,2746,718,906,986,693,161," Geschäftsjahr 2013",{"$f":"SUM(K15:K23)","v":10},106,8,782,812,78,16]
[" Geschäftsjahr 2012",731,2794,2723,802,941,898,700,184," Geschäftsjahr 2012",19,101,5,816,835,78,28]
[" Geschäftsjahr 2011",728,2672,2669,731,933,890,660,186," Geschäftsjahr 2011",22,139,16,756,832,74,27]
[" Geschäftsjahr 2010",855,2769,2896,728,969,1082,662,183," Geschäftsjahr 2010",15,137,13,804,857,101,11]
[" Geschäftsjahr 2009",939,2988,3072,855,1006,1202,682,182," Geschäftsjahr 2009",12,101,24,869,903,88,15]
[" Geschäftsjahr 2008",848,2768,2677,939,938,1090,567,82," Geschäftsjahr 2008",12,104,14,808,837,91,10]
["BEARBEITET UND ZUSAMMENGESTELLT: SOZIALVERSICHERUNG FÜR LANDWIRTSCHAFT, FORSTEN UND GARTENBAU, KASSEL",null,null,null,null,null,null,null,null,"BEARBEITET UND ZUSAMMENGESTELLT: SOZIALVERSICHERUNG FÜR LANDWIRTSCHAFT, FORSTEN UND GARTENBAU, KASSEL"]
[]
[null,null,null,{"$f":"IF(D15=SUM(F15:I15),\"o.k.\",\"falsch\")","v":"o.k."},{"$f":"IF(E15=SUM(B15+C15-D15),\"o.k.\",\"falsch\")","v":"o.k."},{"$f":"IF(F15=SUM(K15:N15),\"o.k.\",\"falsch\")","v":"o.k."}]
[null,null,null,"o.k.","o.k.","o.k."]
[null,null,null,"o.k.","o.k.","o.k."]
[null,null,null,"o.k.","o.k.","o.k."]
[null,null,null,"o.k.","o.k.","o.k."]
[null,null,null,"o.k.","o.k.","o.k."]
[null,null,null,"o.k.","o.k.","o.k."]
[null,null,null,"o.k.","o.k.","o.k."]
[null,null,null,"o.k.","o.k.","o.k."]
[null,null,null,"o.k.","o.k.","o.k."]
[]
[null,null,null,null,null,{"$f":"IF(F15=SUM(O15:Q15),\"o.k.\",\"falsch\")","v":"o.k."}]
[null,null,null,null,null,"o.k."]
[null,null,null,null,null,"o.k."]
[null,null,null,null,null,"o.k."]
[null,null,null,null,null,"o.k."]
[null,null,null,null,null,"o.k."]
[null,null,null,null,null,"o.k."]
[null,null,null,null,null,"o.k."]
[null,null,null,null,null,"o.k."]
[null,null,null,null,null,"o.k."]